lending/lending_fUSD_20240723
["ID","MTS","AMOUNT","RATE_DAILY","PERIOD"]
[333023897,1721758946191,150.0,8.219e-05,2]
[333023898,1721758946216,150.0,8.219e-05,2]
[333023899,1721758946240,150.0,8.219e-05,2]
[333023900,1721758946265,150.0,8.219e-05,2]
[333023901,1721758946288,150.0,8.219e-05,2]
[333023902,1721758946313,150.0,8.219e-05,2]
[333023903,1721758946337,150.0,8.219e-05,2]
[333023904,1721758946360,150.0,8.219e-05,2]
[333023905,1721758946383,150.0,8.219e-05,2]
[333023906,1721758946405,150.0,8.219e-05,2]
[333023907,1721758946428,150.0,8.219e-05,2]
[333023908,1721758946451,150.0,8.219e-05,2]
[333023909,1721758946476,150.0,8.219e-05,2]
[333023910,1721758946499,163.42,8.219e-05,2]
[333023911,1721758946525,42377.28325955,8.219e-05,2]
[333023912,1721758963310,-452.0,9.514e-05,2]
[333023913,1721758963332,-248.15,9.541e-05,2]
[333023914,1721758963356,-250.0,9.567e-05,2]
[333023915,1721758963378,-154.92209385,9.611e-05,2]
[333023916,1721758963401,-8894.92790615,9.693e-05,2]
[333023917,1721758964045,-10000.0,9.693e-05,2]
[333023918,1721758964647,-5005.07209385,9.693e-05,2]
[333023919,1721758964672,-451.31,9.693e-05,2]
[333023920,1721758964697,-168.82,9.694e-05,2]
[333023921,1721758964723,-168.82,9.718e-05,2]
[333023922,1721758964747,-168.82,9.742e-05,2]
[333023923,1721758988359,155.16528501,9.514e-05,2]
[333023924,1721758991436,1193.3789103,9.514e-05,2]
[333023925,1721758995523,202.4621365,9.514e-05,2]
[333023926,1721758996776,155.32548195,9.514e-05,2]
[333023927,1721758996917,167.86234113,9.514e-05,2]
[333023928,1721759001537,291.58113767,9.514e-05,2]
[333023929,1721759003447,798.382599,9.514e-05,2]
[333023930,1721759008795,305.44142731,9.514e-05,2]
[333023931,1721759015445,305.40117997,9.514e-05,2]
[333023932,1721759017625,200.73154998,9.514e-05,2]
[333023933,1721759050641,182.57,7.654e-05,2]
[333023934,1721759087635,78.85585733,9.514e-05,2]
[333023935,1721759087657,10000.0,9.514e-05,2]
[333023936,1721759087680,10000.0,9.514e-05,2]
[333023937,1721759087702,1712.56842244,9.514e-05,2]
[333023938,1721759109514,250.0,9.542e-05,2]
[333023939,1721759152581,526.4,9.559e-05,2]
[333023940,1721759197707,1074.85,8.219e-05,2]
[333023941,1721759230187,250.0,9.581e-05,2]
[333023942,1721759239169,150.0,9.85e-05,2]
[333023943,1721759242357,205.0,9.8e-05,2]
[333023944,1721759242581,5831.18157756,9.569e-05,2]
[333023945,1721759242604,10000.0,9.569e-05,2]
[333023946,1721759242628,8068.81842244,9.569e-05,2]
[333023947,1721759249157,150.2406707,9.641e-05,2]
[333023952,1721759317539,1141.674694,9.873e-05,2]
[333023965,1721759431836,-153.8527844,9.952e-05,2]
[333023966,1721759431846,-155.39218712,9.99e-05,2]
[333023967,1721759431855,-151.30090359,9.995e-05,2]
[333023968,1721759431865,-246.53144154,0.0001,2]
[333023970,1721759431877,-629.99914214,0.0001,2]
[333023971,1721759431889,-123.46941632,0.0001,2]
[333023972,1721759431898,-151.30090359,0.0001,2]
[333023974,1721759431907,-500.0,0.00010023,2]
[333023975,1721759431916,-500.0,0.00010032,2]
[333023977,1721759431925,-500.0,0.00010041,2]
[333023978,1721759431934,-25.22968009,0.0001005,2]
[333023979,1721759431947,-474.77031991,0.0001005,2]
[333023980,1721759431956,-500.0,0.00010058,2]
[333023981,1721759431965,-500.0,0.00010067,2]
[333023982,1721759431974,-500.0,0.00010076,2]
[333023983,1721759431984,-500.0,0.00010085,2]
[333023984,1721759431993,-500.0,0.00010094,2]
[333023985,1721759432003,-500.0,0.00010102,2]
[333023986,1721759432013,-500.0,0.00010111,2]
[333023987,1721759432022,-500.0,0.0001012,2]
[333023988,1721759432032,-168.018975,0.00010123,2]
[333023989,1721759432041,-500.0,0.00010129,2]
[333023990,1721759432050,-300.0,0.00010137,2]
[333023991,1721759432059,-500.0,0.00010138,2]
[333023992,1721759432069,-500.0,0.00010146,2]
[333023993,1721759432078,-150.0,0.00010247,2]
[333023994,1721759432088,-166.66666668,0.00010296,2]
[333023995,1721759432098,-154.34382627,0.00010385,2]
[333023996,1721759432108,-9544.17950565,0.000104,5]
[333023997,1721759432669,-1035.17422718,0.000104,5]
[333023998,1721759432681,-655.60712406,0.000104,5]
[333023999,1721759432695,-251.03914311,0.000104,5]
[333024000,1721759432705,-48.96085689,0.00010434,2]
[333024001,1721759432716,-101.8126511,0.00010434,2]
[333024002,1721759432726,-487.7763489,0.0001045,2]
[333024003,1721759432737,-267.02207882,0.0001045,2]
[333024004,1721759432746,-1074.85,0.00010452,2]
[333024005,1721759432756,-150.65296184,0.00010502,2]
[333024006,1721759432766,-592.0,0.00010703,2]
[333024007,1721759432775,-526.4,0.00010753,2]
[333024008,1721759432784,-165.92612168,0.00010795,2]
[333024009,1721759432793,-1152.8562,0.000108,2]
[333024010,1721759432803,-5389.75441512,0.0001088,2]
[333024011,1721759432811,-153.18864,0.0001089,2]
[333024012,1721759432821,-4044.60853058,0.0001089,2]
[333024013,1721759432832,-935.99632994,0.0001089,2]
[333024014,1721759432842,-1414.36815207,0.0001089,2]
[333024015,1721759432862,-3921.29546248,0.0001089,2]
[333024016,1721759432873,-449.61451987,0.0001089,2]
[333024017,1721759432884,-797.37400748,0.0001089,2]
[333024018,1721759432895,-819.28,0.0001089,2]
[333024019,1721759432995,-5152.73249436,0.0001089,2]
[333024020,1721759433004,-33138.0,0.0001089,2]
[333024021,1721759433014,-1718.87301,0.0001089,2]
[333024022,1721759433024,-1226.3264,0.00010895,2]
[333024023,1721759433033,-442.12881984,0.000109,2]
[333024024,1721759433042,-2500.0,0.000109,2]
[333024025,1721759433051,-1792.2168,0.000109,2]
[333024026,1721759433061,-342.72559864,0.000109,2]
[333024027,1721759433071,-3726.43002744,0.000109,2]
[333024028,1721759433080,-500.0,0.00010959,2]
[333024029,1721759433089,-500.0,0.00010959,2]
[333024030,1721759433099,-250.0,0.00010959,2]
[333024031,1721759433109,-1137.81,0.00010959,5]
[333024032,1721759433118,-150.0,0.00010959,2]
[333024033,1721759433128,-844.46,0.00010959,2]
[333024034,1721759433137,-58000.202042,0.00010995,2]
[333024035,1721759433146,-2057.0332143,0.00010995,2]
[333024036,1721759433156,-1541.3062796,0.00010995,2]
[333024037,1721759433165,-209.42742889,0.00010997,2]
[333024038,1721759433174,-345.66414586,0.00010999,2]
[333024039,1721759433184,-2283.79,0.00010999,2]
[333024040,1721759433196,-543.48724618,0.00010999,2]
[333024041,1721759433206,-418.95896555,0.00010999,2]
[333024042,1721759433216,-1010.82657555,0.00011,2]
[333024043,1721759433225,-120903.21721523,0.00011,2]
[333024044,1721759433236,-478.1956183,0.00011,2]
[333024045,1721759433916,-376.28217556,0.00011,2]
[333024046,1721759433927,-595.5625,0.00011,2]
[333024047,1721759433939,-371.6925449,0.00011,2]
[333024048,1721759433956,-3492.35088058,0.00011,2]
[333024049,1721759433972,-1106.10866471,0.00011,2]
[333024050,1721759433984,-12046.49247876,0.00011,2]
[333024051,1721759433995,-4998.39904866,0.00011,2]
[333024054,1721759437852,-1868.14355823,0.00011,2]
[333024055,1721759437863,-5872.37762678,0.00011,2]
[333024056,1721759437887,-7440.2661436,0.00011,2]
[333024057,1721759437925,-33500.0,0.00011,2]
[333024058,1721759437965,-1275.15327242,0.00011,2]
[333024059,1721759438095,-5371.182833,0.00011,2]
[333024064,1721759438295,-3811.07882792,0.00011,2]
[333024090,1721759439928,-9937.0845,0.00011,2]
[333024092,1721759439939,-1792.58965371,0.00011,2]
[333024103,1721759440062,-6685.9436,0.00011,2]
[333024104,1721759440193,-871.9,0.00011,2]
[333024150,1721759442941,-863.99999999,0.00011,2]
[333024154,1721759443274,-6686.38432214,0.00011,2]
[333024155,1721759443285,-1123.78270507,0.00011,2]
[333024174,1721759445952,-626.08369242,0.00011,2]
[333024175,1721759445966,-827.87841086,0.00011,2]
[333024176,1721759445977,-8660.0,0.00011,2]
[333024177,1721759446080,-366.0,0.00011,2]
[333024178,1721759446092,-6646.64,0.00011,2]
[333024184,1721759494309,566.53,9.527e-05,2]
[333024188,1721759548651,72.73621286,9.549e-05,2]
[333024189,1721759548675,82.18588099,9.549e-05,2]
[333024193,1721759824453,9917.81411901,9.875e-05,2]
[333024194,1721759824478,10000.0,9.875e-05,2]
[333024195,1721759929588,150.0,8.219e-05,2]
[333024196,1721759929611,880.76,8.219e-05,2]
[333024210,1721760549995,-200.0,9.502e-05,2]
[333024211,1721760550021,-151.45631595,9.511e-05,2]
[333024212,1721760550045,-151.30090361,9.511e-05,2]
[333024213,1721760550068,-200.0,9.517e-05,2]
[333024214,1721760550091,-153.77388829,9.541e-05,2]
[333024215,1721760550115,-300.0,9.559e-05,2]
[333024216,1721760550142,-8843.46889215,9.56e-05,2]
[333024217,1721760550575,-2869.63110785,9.56e-05,2]
[333024218,1721760550599,-346.03,9.561e-05,2]
[333024219,1721760550623,-250.0,9.565e-05,2]
[333024220,1721760550646,-627.99,9.565e-05,2]
[333024221,1721760550676,-2371.19,9.616e-05,2]
[333024222,1721760550699,-735.67,9.629e-05,2]
[333024223,1721760550723,-150.0,9.671e-05,2]
[333024224,1721760550746,-1000.0,9.695e-05,2]
[333024225,1721760550769,-150.65296184,9.791e-05,2]
[333024226,1721760550791,-166.46007437,9.801e-05,2]
[333024227,1721760550813,-783.63,9.842e-05,2]
[333024228,1721760550836,-548.74585594,9.842e-05,2]
[333024231,1721760575539,-7060.90414406,9.842e-05,2]
[333024263,1721760633797,-500.0,9.843e-05,2]
[333024264,1721760633806,-481.14,9.843e-05,2]
[333024265,1721760633815,-318.57,9.843e-05,2]
[333024266,1721760633825,-167.81,9.905e-05,2]
[333024267,1721760633835,-499.99,9.905e-05,2]
[333024268,1721760633845,-1255.76158876,9.962e-05,2]
[333024269,1721760633854,-27019.89627649,9.962e-05,2]
[333024270,1721760633864,-166.66666666,9.992e-05,2]
[333024271,1721760633874,-153.78556042,0.00010194,2]
[333024272,1721760633884,-150.77350799,0.00010341,2]
[333024273,1721760633894,-150.2406707,0.0001035,2]
[333024274,1721760633903,-1514.69443164,0.0001045,2]
[333024275,1721760633913,-1030.76,0.00010468,2]
[333024276,1721760633923,-166.46007437,0.00010764,2]
[333024277,1721760633932,-150.2406707,0.00010777,2]
[333024278,1721760633942,-6942.0,0.00010781,2]
[333024279,1721760633952,-2705.51974962,0.0001089,2]
[333024280,1721760633962,-303.3907,0.00010895,2]
[333024281,1721760633972,-4037.31770087,0.00010899,2]
[333024282,1721760633982,-32056.0477,0.000109,2]
[333024283,1721760633991,-3991.18446678,0.000109,2]
[333024284,1721760634000,-337.389782,0.000109,2]
[333024285,1721760634013,-4288.381,0.000109,2]
[333024286,1721760634023,-240.93073036,0.000109,2]
[333024287,1721760634094,-725.06436964,0.000109,2]
[333024288,1721760634104,-592.94,0.000109,2]
[333024289,1721760634114,-290.4654,0.000109,2]
[333024290,1721760634124,-1751.3159,0.000109,2]
[333024291,1721760634133,-1000.0,0.000109,2]
[333024292,1721760634142,-426.20031368,0.000109,2]
[333024293,1721760634152,-1112.98096882,0.000109,2]
[333024294,1721760634161,-1189.0,0.000109,2]
[333024295,1721760634170,-394.80971729,0.000109,2]
[333024296,1721760634180,-1000.0,0.00010906,2]
[333024297,1721760634189,-127.64691637,0.00010912,2]
[333024298,1721760634200,-266.95294903,0.00010912,2]
[333024299,1721760634212,-105.4001346,0.00010912,2]
[333024300,1721760634221,-839.76,0.00010932,2]
[333024301,1721760634231,-500.0,0.00010959,2]
[333024302,1721760634240,-500.0,0.00010959,2]
[333024303,1721760634250,-250.0,0.00010959,2]
[333024304,1721760634260,-3627.94384019,0.00010959,2]
[333024305,1721760634271,-2280.57713759,0.00010959,2]
[333024306,1721760634313,-679.73,0.00010959,2]
[333024307,1721760634854,-2691.08509777,0.00010959,2]
[333024308,1721760634866,-2728.98392445,0.00010959,2]
[333024309,1721760634876,-150.0,0.00010959,2]
[333024310,1721760634887,-500.0,0.00010974,2]
[333024311,1721760634897,-500.0,0.00010982,2]
[333024312,1721760634906,-500.0,0.00010991,2]
[333024313,1721760634916,-4617.93432456,0.00010997,2]
[333024314,1721760634925,-917.9506827,0.00010998,2]
[333024315,1721760634934,-1578.7655485,0.00010998,2]
[333024316,1721760634944,-1031.19949946,0.00010998,2]
[333024317,1721760634956,-166.37721604,0.00010998,2]
[333024318,1721760634965,-801.71189877,0.00010998,2]
[333024319,1721760634977,-6599.90554356,0.00010998,2]
[333024320,1721760634988,-7631.96094055,0.00010998,2]
[333024321,1721760635048,-34484.85078372,0.00010998,2]
[333024322,1721760635058,-8603.1099582,0.00010998,2]
[333024323,1721760635067,-150.01,0.00010999,2]
[333024324,1721760635076,-522.86989678,0.00010999,2]
[333024325,1721760635086,-354.15248008,0.00010999,2]
[333024326,1721760635096,-500.0,0.00010999,2]
[333024327,1721760635105,-2188.63,0.00010999,2]
[333024328,1721760635115,-500.0,0.00010999,2]
[333024329,1721760635124,-280.81905384,0.00010999,2]
[333024330,1721760635133,-528.0,0.00011,2]
[333024331,1721760635143,-619559.37997258,0.00011,2]
[333024343,1721760638179,-6617.7111,0.00010991,2]
[333024344,1721760638191,-1291.06,0.00010991,2]
[333024345,1721760638202,-1829.20022055,0.00010991,2]
[333024346,1721760638213,-1506.54650978,0.00010991,2]
[333024347,1721760638224,-2640.08,0.00010991,2]
[333024348,1721760638269,-300.0,0.00010991,2]
[333024349,1721760638334,-368.80385701,0.00010991,2]
[333024350,1721760638346,-313.999999,0.00010991,2]
[333024351,1721760638357,-8344.61681442,0.00010991,2]
[333024394,1721760640319,-23538.13631104,0.00010991,2]
[333024395,1721760640482,-3249.8451882,0.00010991,2]
[333024396,1721760640492,-26.88121677,0.00011,2]
[333024397,1721760640503,-59574.82812937,0.00011,2]
[333024398,1721760640683,-8918.41095934,0.00011,2]
[333024399,1721760640694,-9348.944879,0.00011,2]
[333024400,1721760640703,-84086.74524839,0.00011,2]
[333024401,1721760640716,-66689.60993003,0.00011,2]
[333024402,1721760640727,-31781.46085387,0.00011,2]
[333024403,1721760640738,-194452.06649073,0.00011,2]
[333024404,1721760640782,-1178.198028,0.00011,2]
[333024405,1721760640794,-1777.7292,0.00011,2]
[333024406,1721760640806,-253.44497898,0.00011,2]
[333024407,1721760640818,-345.91147168,0.00011,2]
[333024408,1721760640829,-466.15748816,0.00011,2]
[333024409,1721760640841,-2572.59412991,0.00011,2]
[333024410,1721760640855,-344.52499999,0.00011,2]
[333024424,1721760643250,-855.50000002,0.0001078,2]
[333024426,1721760643487,-255.00846757,0.0001078,2]
[333024427,1721760643498,-2037.64541832,0.00011,2]
[333024428,1721760643516,-1723.52276409,0.00011,2]
[333024429,1721760643528,-33037.05168744,0.00011,2]
[333024430,1721760643591,-4336.95767507,0.00011,2]
[333024435,1721760644654,-690329.9308398,0.00011,2]
[333024436,1721760644668,-74919.9243171,0.00011,2]
[333024450,1721760646280,-4846.06148485,0.00011,2]
[333024454,1721760646660,-712.12356696,0.00011,2]
[333024457,1721760646672,-883.43141729,0.00011,2]
[333024472,1721760879063,1048.9,8.219e-05,2]
[333024478,1721761476299,996.45,8.219e-05,2]
[333024479,1721761738598,863.7364,8.993e-05,2]
[333024505,1721761832836,-300.0,9.092e-05,2]
[333024506,1721761832846,-300.0,9.092e-05,2]
[333024507,1721761832855,-23900.0,9.093e-05,2]
[333024508,1721761832864,-2209.85,9.186e-05,2]
[333024509,1721761832873,-250.0,9.213e-05,2]
[333024510,1721761832882,-500.0,9.215e-05,2]
[333024511,1721761832892,-1868.39,9.242e-05,2]
[333024512,1721761832901,-1677.28,9.243e-05,2]
[333024513,1721761832911,-200.0,9.26e-05,2]
[333024514,1721761832921,-2203.79,9.263e-05,2]
[333024515,1721761832930,-500.0,9.29e-05,2]
[333024516,1721761832940,-2058.16,9.327e-05,2]
[333024517,1721761832950,-289.59,9.327e-05,2]
[333024518,1721761832959,-990.03,9.425e-05,2]
[333024519,1721761832968,-559.19,9.436e-05,2]
[333024520,1721761832977,-194.98,9.448e-05,2]
[333024521,1721761832987,-1000.0,9.53e-05,2]
[333024522,1721761832996,-150.0,9.669e-05,2]
[333024523,1721761833006,-2359.75,9.67e-05,2]
[333024524,1721761833016,-800.49,9.67e-05,2]
[333024525,1721761833025,-2558.04,9.67e-05,2]
[333024526,1721761833035,-150.99,9.67e-05,2]
[333024527,1721761833044,-9999.99,9.67e-05,2]
[333024528,1721761833054,-15133.52,9.67e-05,2]
[333024529,1721761833063,-1662.05,9.67e-05,2]
[333024530,1721761833073,-499.99,9.67e-05,2]
[333024531,1721761833083,-878.59,9.67e-05,2]
[333024532,1721761833095,-299.99,9.67e-05,2]
[333024533,1721761833105,-178.42,9.8e-05,2]
[333024534,1721761833114,-420.0,0.00010001,2]
[333024535,1721761833124,-15641.30990825,0.00010029,2]
[333024536,1721761833135,-155.39218712,0.00010063,2]
[333024537,1721761833144,-150.65296184,0.00010154,2]
[333024538,1721761833154,-150.0,0.00010247,2]
[333024539,1721761833164,-996.45,0.00010433,2]
[333024540,1721761833177,-3742.0,0.00010567,2]
[333024541,1721761833187,-151.32323003,0.00010622,2]
[333024542,1721761833197,-19928.2618097,0.00010712,2]
[333024543,1721761833206,-1000.0,0.00010721,2]
[333024544,1721761833216,-150.65296184,0.00010725,2]
[333024545,1721761833226,-157.03906609,0.00010753,2]
[333024546,1721761833236,-1131.26537614,0.0001078,2]
[333024547,1721761833246,-150.0,0.00010795,2]
[333024549,1721761833256,-150.0,0.00010795,2]
[333024551,1721761833266,-150.0,0.00010795,2]
[333024552,1721761833276,-150.0,0.00010795,2]
[333024554,1721761833285,-2147.86361307,0.00010798,2]
[333024556,1721761833296,-5121.0,0.00010799,2]
[333024558,1721761833306,-38358.0,0.00010799,2]
[333024560,1721761833317,-5828.0,0.00010799,2]
[333024563,1721761833328,-1669.0,0.00010799,2]
[333024565,1721761833338,-1202.0,0.00010799,2]
[333024567,1721761833348,-2147.86361307,0.000108,2]
[333024569,1721761833359,-30779.445,0.000108,2]
[333024571,1721761833369,-500.0,0.00010886,2]
[333024572,1721761833379,-500.0,0.00010894,2]
[333024574,1721761833389,-12689.3075,0.00010898,2]
[333024576,1721761833399,-18424.6012,0.00010898,2]
[333024578,1721761833408,-460.3253,0.00010899,2]
[333024579,1721761833418,-99285.67739635,0.000109,2]
[333024580,1721761833679,-7008.54387818,0.000109,2]
[333024581,1721761833744,-251.30168436,0.000109,2]
[333024582,1721761833769,-11360.65198285,0.000109,2]
[333024583,1721761833781,-4020.05519747,0.000109,2]
[333024584,1721761833791,-521.124372,0.000109,2]
[333024585,1721761833803,-122285.30718879,0.000109,2]
[333024586,1721761833813,-235.2687,0.000109,2]
[333024587,1721761833822,-413.70052369,0.000109,2]
[333024588,1721761833831,-927.60680925,0.000109,2]
[333024589,1721761833841,-6127.39616789,0.000109,2]
[333024590,1721761833850,-263.2064782,0.000109,2]
[333024591,1721761833859,-477.01094481,0.000109,2]
[333024592,1721761833869,-500.0,0.00010903,2]
[333024593,1721761833879,-500.0,0.00010912,2]
[333024594,1721761833888,-500.0,0.00010921,2]
[333024595,1721761833898,-500.0,0.0001093,2]
[333024596,1721761833907,-420.16,0.00010932,2]
[333024597,1721761833917,-833.64,0.00010932,2]
[333024598,1721761833927,-420.16,0.00010932,2]
[333024599,1721761833936,-833.64,0.00010932,2]
[333024600,1721761833946,-833.64,0.00010932,2]
[333024601,1721761833956,-420.16,0.00010932,2]
[333024602,1721761833966,-833.64,0.00010932,2]
[333024603,1721761833976,-420.16,0.00010932,2]
[333024604,1721761833986,-833.64,0.00010932,2]
[333024605,1721761833996,-420.16,0.00010932,2]
[333024606,1721761834005,-833.64,0.00010932,2]
[333024607,1721761834016,-420.16,0.00010932,2]
[333024608,1721761834026,-833.64,0.00010932,2]
[333024609,1721761834035,-420.16,0.00010932,2]
[333024610,1721761834045,-833.64,0.00010932,2]
[333024611,1721761834055,-420.16,0.00010932,2]
[333024612,1721761834065,-418.99,0.00010932,2]
[333024613,1721761834074,-833.64,0.00010932,2]
[333024614,1721761834084,-500.0,0.00010938,2]
[333024615,1721761834097,-500.0,0.00010947,2]
[333024616,1721761834108,-500.0,0.00010956,2]
[333024617,1721761834118,-500.0,0.00010958,2]
[333024618,1721761834128,-500.0,0.00010959,2]
[333024619,1721761834140,-500.0,0.00010959,2]
[333024620,1721761834149,-679.1,0.00010959,2]
[333024621,1721761834159,-250.0,0.00010959,2]
[333024622,1721761834169,-150.0,0.00010959,2]
[333024623,1721761834180,-500.0,0.00010965,2]
[333024624,1721761834190,-1382.8396031,0.00010995,2]
[333024625,1721761834200,-5290.13878641,0.00010997,2]
[333024626,1721761834210,-461.1863827,0.00010998,2]
[333024627,1721761834220,-300.02,0.00010999,2]
[333024628,1721761834229,-288.67861635,0.00010999,2]
[333024629,1721761834239,-521.74362309,0.00010999,2]
[333024630,1721761834249,-2916.74,0.00010999,2]
[333024631,1721761834261,-500.0,0.00011,2]
[333024632,1721761834272,-2256.28415479,0.00011,2]
[333024633,1721761834282,-51877.47923658,0.00011,2]
[333024634,1721761834292,-151.0,0.00011,2]
[333024635,1721761834303,-151.0,0.00011,2]
[333024636,1721761834313,-151.0,0.00011,2]
[333024637,1721761834323,-151.0,0.00011,2]
[333024638,1721761834333,-151.0,0.00011,2]
[333024639,1721761834343,-151.0,0.00011,2]
[333024640,1721761834353,-199.0,0.00011,2]
[333024641,1721761834363,-650375.62362227,0.00011,2]
[333024642,1721761834375,-1213.93749004,0.00011,2]
[333024643,1721761834387,-334.61,0.00011,2]
[333024648,1721761838331,-1073.0,0.00010799,2]
[333024649,1721761838341,-192.4524109,0.00010999,2]
[333024650,1721761838351,-7513.89220749,0.00011,2]
[333024651,1721761839195,-473.96428029,0.00011,2]
[333024652,1721761839254,-644.47142518,0.00011,2]
[333024666,1721761840358,-6567.22264532,0.00011,2]
[333024667,1721761840369,-994.41194783,0.00011,2]
[333024668,1721761840381,-315.68341541,0.00011,2]
[333024669,1721761840452,-884.16644664,0.00011,2]
[333024670,1721761840674,-268537.56228712,0.00011,2]
[333024672,1721761840683,-265916.71447317,0.00011,2]
[333024673,1721761840692,-500.0,0.00011,2]
[333024674,1721761840701,-500.0,0.00011,2]
[333024675,1721761840710,-500.0,0.00011,2]
[333024676,1721761840719,-500.0,0.00011,2]
[333024677,1721761840728,-500.0,0.00011,2]
[333024678,1721761840737,-500.0,0.00011,2]
[333024679,1721761840746,-500.0,0.00011,2]
[333024681,1721761840755,-895.0,0.00011,2]
[333024683,1721761840766,-380.38,0.00011,2]
[333024684,1721761840775,-1049.01515788,0.00011,2]
[333024685,1721761840784,-2657693.34155233,0.00011,2]
[333024686,1721761840793,-832.96045112,0.00011,2]
[333024687,1721761840803,-201.1789441,0.00011,2]
[333024688,1721761840816,-348.45084534,0.00011,2]
[333024689,1721761840825,-412.49430383,0.00011,2]
[333024690,1721761840834,-300.29482751,0.00011,2]
[333024691,1721761840843,-500.0,0.00011,2]
[333024692,1721761840852,-500.0,0.00011,2]
[333024693,1721761840861,-215.0,0.00011,2]
[333024694,1721761840870,-154.0,0.00011,2]
[333024695,1721761840879,-163.0,0.00011,2]
[333024696,1721761840888,-163.126,0.00011,2]
[333024697,1721761840897,-209.076,0.00011,2]
[333024698,1721761840906,-156.085,0.00011,2]
[333024699,1721761840916,-150.218,0.00011,2]
[333024700,1721761840925,-151.177,0.00011,2]
[333024701,1721761840934,-2000.0,0.00011,2]
[333024702,1721761840943,-200.0,0.00011,2]
[333024703,1721761840953,-1250.0,0.00011,2]
[333024704,1721761840961,-200.0,0.00011,2]
[333024705,1721761840970,-1254.0,0.00011,2]
[333024706,1721761840979,-362.0,0.00011,2]
[333024707,1721761840988,-1829.0,0.00011,2]
[333024708,1721761840997,-1663.0,0.00011,2]
[333024709,1721761841006,-445.266,0.00011,2]
[333024710,1721761841015,-621.0,0.00011,2]
[333024711,1721761841024,-166.0,0.00011,2]
[333024712,1721761841034,-841.197,0.00011,2]
[333024713,1721761841043,-450.0,0.00011,2]
[333024714,1721761841053,-262.988,0.00011,2]
[333024715,1721761841061,-2382.0,0.00011,2]
[333024716,1721761841071,-550.0,0.00011,2]
[333024717,1721761841329,-206.786,0.00011,2]
[333024718,1721761841338,-150.0,0.00011,2]
[333024719,1721761841348,-1994.0,0.00011,2]
[333024720,1721761841357,-150.0,0.00011,2]
[333024721,1721761841366,-3283.0,0.00011,2]
[333024722,1721761841375,-151.0,0.00011,2]
[333024723,1721761841384,-151.0,0.00011,2]
[333024724,1721761841394,-394.700899,0.00011,2]
[333024725,1721761841404,-394.700899,0.00011,2]
[333024726,1721761841413,-394.700899,0.00011,2]
[333024727,1721761841422,-394.700899,0.00011,2]
[333024728,1721761841431,-1807.30238,0.00011,2]
[333024729,1721761841441,-1108.76823483,0.00011,2]
[333024730,1721761841450,-1108.76823483,0.00011,2]
[333024731,1721761841459,-1108.76823483,0.00011,2]
[333024732,1721761841468,-587.0,0.00011001,2]
[333024733,1721761841477,-1048.1142377,0.00011006,2]
[333024734,1721761841487,-50867.7330493,0.00011006,2]
[333024735,1721761841496,-14613.0,0.00011014,2]
[333024736,1721761841505,-157.03906609,0.00011018,2]
[333024737,1721761841516,-413.70052369,0.0001105,2]
[333024738,1721761841526,-150.0,0.00011068,2]
[333024739,1721761841535,-856.59,0.00011068,2]
[333024740,1721761841544,-150.0,0.00011068,2]
[333024741,1721761841553,-150.0,0.00011068,2]
[333024742,1721761841562,-155.27597339,0.0001109,2]
[333024743,1721761841572,-301.245,0.00011091,2]
[333024744,1721761841582,-151.45631595,0.00011092,2]
[333024745,1721761841593,-15465.42611923,0.00011105,2]
[333024746,1721761841602,-4471.6772674,0.00011105,2]
[333024747,1721761841612,-3787.12695954,0.00011105,2]
[333024748,1721761841621,-2687.87342652,0.00011105,2]